bitfinex-derivatives/quotes_ETHF0:USTF0_20240829
["timestamp","ask_amount","ask_price","bid_price","bid_amount"]
[1724909745019,0.39465,2533.2,2533.1,0.00592768]
[1724909745225,4.34185,2533.2,2533.1,0.00592768]
[1724909745422,14.65962138,2533.2,2533.1,0.00592768]
[1724909745725,0.3947,2533.0,2532.6,3.41]
[1724909745928,3.2078,2532.9,2532.7,1.03065492]
[1724909746132,0.6742,2532.8,2532.7,1.03065492]
[1724909746427,1.4107,2532.8,2532.7,1.42538492]
[1724909746617,4.90282531,2532.8,2532.7,1.42538492]
[1724909747619,4.90282531,2532.8,2532.7,1.03065492]
[1724909748331,4.90282531,2532.8,2532.7,1.42538492]
[1724909748521,4.16632531,2532.8,2532.7,1.42538492]
[1724909749030,3.2078,2532.9,2532.8,0.39472]
[1724909749230,3.2078,2532.9,2532.8,4.83537492]
[1724909749632,3.2078,2532.9,2532.8,4.44065492]
[1724909749844,3.2078,2532.9,2532.8,5.12345492]
[1724909750333,7.42837572,2532.9,2532.8,5.12345492]
[1724909751632,7.42837572,2532.9,2532.8,4.44065492]
[1724909752429,3.2078,2532.9,2532.8,4.83537492]
[1724909754428,0.26031576,2533.3,2533.2,0.39465]
[1724909754631,3.21372768,2533.4,2533.2,4.83530492]
[1724909754833,3.21372768,2533.4,2533.3,1.03065492]
[1724909755035,3.21372768,2533.4,2533.3,1.77295492]
[1724909755232,7.7059336,2533.4,2533.3,1.77295492]
[1724909755437,7.7059336,2533.4,2533.3,2.16759492]
[1724909755626,7.7059336,2533.4,2533.3,1.77295492]
[1724909755827,7.7059336,2533.4,2533.3,2.16759492]
[1724909756028,0.00592768,2533.4,2533.3,2.16759492]
[1724909757634,0.00592768,2533.4,2533.3,8.16759492]
[1724909757827,3.46811576,2534.1,2533.7,0.39456]
[1724909758030,3.46811576,2534.1,2533.3,7.77295492]
[1724909758031,3.2078,2534.1,2534.0,4.44065492]
[1724909758439,7.35439968,2534.1,2534.0,4.44065492]
[1724909758640,7.35439968,2534.1,2534.0,5.56478492]
[1724909759143,7.35439968,2534.1,2534.0,5.17025492]
[1724909759535,7.35439968,2534.1,2534.0,5.56478492]
[1724909760636,3.95759968,2534.1,2534.0,5.56478492]
[1724909760947,3.2078,2534.5,2534.4,0.39447]
[1724909761241,3.2078,2534.5,2534.4,4.83512492]
[1724909763043,1.3758,2534.9,2534.4,4.83512492]
[1724909763044,4.5836,2534.9,2534.4,4.83512492]
[1724909763252,4.5836,2534.9,2534.6,1.03065492]
[1724909763548,4.40069201,2534.8,2534.6,1.03065492]
[1724909763848,4.40069201,2534.8,2534.6,1.42509492]
[1724909764048,4.40069201,2534.8,2534.6,1.03065492]
[1724909764352,4.40069201,2534.8,2534.7,1.03065492]
[1724909766268,4.40069201,2534.8,2534.7,1.42507492]
[1724909766455,4.40069201,2534.8,2534.7,1.03065492]
[1724909767564,9.07369201,2534.8,2534.4,3.41]
[1724909767765,5.52331201,2534.8,2534.6,1.03065492]
[1724909767960,3.2078,2534.7,2534.6,1.03065492]
[1724909768363,7.73878076,2534.7,2534.6,1.03065492]
[1724909768867,8.13320076,2534.7,2534.6,1.03065492]
[1724909769063,7.73878076,2534.7,2534.6,1.03065492]
[1724909770168,4.53098076,2534.7,2534.6,1.03065492]
[1724909770965,8.13320076,2534.7,2534.6,1.03065492]
[1724909771368,8.13320076,2534.7,2534.2,3.41]
[1724909771369,17.68438076,2534.7,2534.2,3.41]
[1724909771570,8.13321076,2534.7,2534.4,1.03065492]
[1724909772067,0.39444,2534.6,2534.4,1.03065492]
[1724909772562,7.73878076,2534.7,2534.4,1.03065492]
[1724909772563,5.40552302,2534.5,2534.4,1.03065492]
[1724909772971,1.08415,2534.5,2534.4,1.03065492]
[1724909773172,5.25429936,2534.5,2534.4,1.03065492]
[1724909774669,4.85984936,2534.5,2534.4,1.03065492]
[1724909775861,5.25429936,2534.5,2534.4,1.03065492]
[1724909776062,0.39448,2534.4,2534.0,3.80452]
[1724909776258,3.8965,2534.3,2534.1,1.42516492]
[1724909776458,8.327175,2534.3,2534.1,1.42516492]
[1724909776662,8.327175,2534.3,2534.1,1.03065492]
[1724909776869,8.721665,2534.3,2534.1,1.03065492]
[1724909777171,4.34091,2534.2,2533.9,0.39454]
[1724909777471,4.54694106,2534.1,2533.9,1.03065492]
[1724909777667,5.28914106,2534.1,2533.9,1.03065492]
[1724909777857,0.7422,2534.1,2533.9,1.42519492]
[1724909778058,4.25532038,2534.0,2533.9,1.42519492]
[1724909779468,3.2078,2534.3,2533.9,1.03065492]
[1724909779671,3.2078,2534.3,2533.8,3.41592768]
[1724909779672,0.7001,2534.2,2533.8,3.81047768]
[1724909779874,4.867037,2534.2,2533.9,0.39454]
[1724909780061,4.867037,2534.2,2534.1,1.03065492]
[1724909780469,8.813437,2534.2,2533.8,3.41592768]
[1724909780666,4.867037,2534.2,2534.0,1.03065492]
[1724909780872,4.867037,2534.2,2534.1,1.42516492]
[1724909780873,4.166937,2534.2,2534.1,1.42516492]
[1724909781172,4.166937,2534.2,2534.1,2.16766492]
[1724909781366,3.2078,2534.3,2534.2,0.3945]
[1724909781565,3.2078,2534.3,2534.2,5.58705492]
[1724909784967,3.60218,2535.0,2534.5,0.39445]
[1724909785168,3.60218,2535.0,2534.7,1.03065492]
[1724909785169,3.2078,2535.0,2534.7,1.03065492]
[1724909785369,4.46916006,2534.9,2534.7,1.03065492]
[1724909785975,4.46916006,2534.9,2534.8,0.7292]
[1724909786180,8.41396006,2534.9,2534.8,0.7292]
[1724909786473,4.46916006,2534.9,2534.8,1.75985492]
[1724909786665,4.46916006,2534.9,2534.8,2.15425492]
[1724909787376,4.46916006,2534.9,2534.8,1.75985492]
[1724909788168,4.46916006,2534.9,2534.8,2.15425492]
[1724909788569,4.46916006,2534.9,2534.8,1.75985492]
[1724909788971,4.46916006,2534.9,2534.8,2.15425492]
[1724909790378,8.41396006,2534.9,2534.6,0.722]
[1724909790574,4.46916006,2534.9,2534.7,1.03065492]
[1724909790980,0.7211,2534.8,2534.7,1.03065492]
[1724909791381,0.39446,2534.5,2534.3,3.41]
[1724909791574,3.60226,2534.5,2534.4,1.03065492]
[1724909791887,8.20946301,2534.4,2533.8,0.00592768]
[1724909792074,3.2078,2534.0,2533.8,1.0365826]
[1724909792273,8.19276301,2534.3,2533.9,1.03065492]
[1724909792571,8.19276301,2534.3,2534.1,1.03065492]
[1724909792572,3.9289,2534.3,2534.1,1.03065492]
[1724909792771,4.28122308,2534.2,2534.1,1.03065492]
[1724909797181,4.28122308,2534.2,2534.1,1.42516492]
[1724909797480,4.28122308,2534.2,2534.1,1.03065492]
[1724909797687,8.22762308,2534.2,2533.8,0.00592768]
[1724909797877,3.2078,2533.9,2533.8,1.0365826]
[1724909798281,7.48873306,2533.9,2533.8,1.0365826]
[1724909798681,4.28093306,2533.9,2533.8,1.0365826]
[1724909799187,4.32723822,2534.0,2533.8,1.0365826]
[1724909799489,1.09511,2534.1,2533.9,1.03065492]
[1724909799685,4.32723822,2534.0,2533.9,1.03065492]
[1724909800582,4.32723822,2534.0,2533.9,1.42519492]
[1724909800985,3.2078,2534.2,2534.0,0.39452]
[1724909800986,4.52051615,2534.1,2534.0,0.39452]
[1724909801179,3.2078,2534.2,2534.1,1.03065492]
[1724909801592,8.12281615,2534.2,2534.1,1.03065492]
[1724909803689,7.72831615,2534.2,2534.1,1.03065492]
[1724909803880,7.72831615,2534.2,2534.1,1.42516492]
[1724909804190,7.72831615,2534.2,2534.1,1.03065492]
[1724909804385,7.72831615,2534.2,2534.1,1.42516492]
[1724909805083,7.72831615,2534.2,2534.1,2.13396492]
[1724909805283,7.72831615,2534.2,2534.1,2.84846492]
[1724909805888,4.52051615,2534.2,2534.1,2.84846492]
[1724909807387,3.46811576,2534.6,2534.4,0.39446]
[1724909807586,3.2078,2534.6,2534.5,1.03065492]
[1724909807796,3.2078,2534.6,2534.5,1.79885492]
[1724909807996,7.70573494,2534.6,2534.5,1.79885492]
[1724909808889,7.70573494,2534.6,2534.5,1.03065492]
[1724909809192,8.10017494,2534.6,2534.5,1.03065492]
[1724909810193,7.70573494,2534.6,2534.5,1.03065492]
[1724909811484,7.70573494,2534.6,2534.5,1.42510492]
[1724909812291,7.70573494,2534.6,2534.5,1.03065492]
[1724909817096,7.70573494,2534.6,2534.5,1.42510492]
[1724909817493,7.70573494,2534.6,2534.5,1.03065492]
[1724909820788,4.49793494,2534.6,2534.5,1.03065492]
[1724909820997,7.70573494,2534.6,2534.5,1.03065492]
[1724909821190,3.2078,2534.6,2534.5,1.42510492]
[1724909821391,4.25777416,2534.6,2534.5,1.03065492]
[1724909821601,4.25777416,2534.6,2534.5,1.42510492]
[1724909821900,3.0178,2535.6,2534.5,10.69972415]
[1724909822095,0.26031576,2535.7,2535.4,3.80431]
[1724909822291,4.21342049,2535.7,2535.5,0.723]
[1724909822496,3.2078,2536.0,2535.6,6.6178]
[1724909822695,3.2078,2536.0,2535.9,3.41]
[1724909823295,3.2078,2536.0,2535.7,3.41]
[1724909823494,3.2078,2536.0,2535.5,5.5837]
[1724909823495,7.66489092,2536.0,2535.5,5.5837]
[1724909823997,7.66489092,2536.0,2535.5,5.97799]
[1724909824194,7.66489092,2536.0,2535.5,5.5837]
[1724909824398,7.66489092,2536.0,2535.5,4.876]
[1724909824399,0.39424,2535.9,2535.5,4.876]
[1724909824604,0.742,2535.8,2535.5,4.876]
[1724909824796,5.06068525,2535.8,2535.5,4.876]
[1724909826003,5.06068525,2535.8,2535.5,5.27029]
[1724909826204,4.31868525,2535.8,2535.5,5.27029]
[1724909826393,4.31868525,2535.8,2535.5,4.876]
[1724909826594,4.31868525,2535.8,2535.7,0.39426]
[1724909826804,3.2078,2536.0,2535.7,7.74826]
[1724909827004,3.2078,2536.0,2535.8,0.7097]
[1724909827198,4.36813151,2535.9,2535.8,0.7097]
[1724909827594,4.36813151,2535.9,2535.8,4.6529]
[1724909829292,4.36813151,2535.9,2535.8,5.04715]
[1724909829491,0.26031576,2536.6,2536.1,0.39419]
[1724909829697,0.26031576,2536.6,2536.2,5.24198]
[1724909829897,0.26031576,2536.6,2536.2,4.8478]
[1724909829898,4.19772667,2536.5,2536.2,4.8478]
[1724909830096,4.19772667,2536.5,2536.2,5.24198]
[1724909830498,4.19772667,2536.5,2536.3,0.39417]
[1724909830704,4.19772667,2536.5,2536.2,5.24197]
[1724909831405,4.19772667,2536.5,2536.2,4.8478]
[1724909831801,4.19772667,2536.5,2535.9,3.41]
[1724909831802,3.2078,2536.4,2535.9,3.41]
[1724909832104,4.49277883,2536.3,2536.0,0.39422]
[1724909832802,4.49277883,2536.3,2535.9,4.50502]
[1724909833003,4.49277883,2536.3,2536.0,0.39422]
[1724909834404,4.49277883,2536.3,2536.1,0.3942]
[1724909834599,0.39421,2536.1,2535.9,0.7008]
[1724909834800,0.39421,2536.1,2535.7,3.41]
[1724909835006,4.55184762,2536.0,2535.7,3.41]
[1724909835408,4.55184762,2536.0,2535.5,8.7956]
[1724909835704,4.15761762,2536.0,2535.8,0.39424]
[1724909836218,4.15761762,2536.0,2535.7,3.41]
[1724909836511,4.55183762,2536.0,2535.7,3.41]
[1724909836704,4.15761762,2536.0,2535.7,3.41]
[1724909837506,4.15761762,2536.0,2535.8,0.39424]
[1724909837708,4.15761762,2536.0,2535.7,3.80426]
[1724909838013,4.15761762,2536.0,2535.7,3.41]
[1724909838217,4.15761762,2536.0,2535.8,0.39424]
[1724909838511,3.2078,2537.6,2535.9,12.8208]
[1724909838710,0.98466,2538.4,2537.5,3.41]
[1724909838711,3.2078,2537.9,2537.5,3.41]
[1724909839007,3.2078,2537.9,2537.8,3.41]
[1724909839209,3.2078,2537.9,2537.7,0.39395]
[1724909839210,3.94,2537.9,2537.7,0.39395]
[1724909839398,0.7153,2537.8,2537.1,3.41]
[1724909839604,3.2078,2537.5,2537.1,3.41]
[1724909839900,4.88721031,2537.4,2537.0,0.39406]
[1724909840109,0.39402,2537.3,2536.9,3.80407]
[1724909840310,4.20852031,2537.4,2537.2,3.41]
[1724909840505,0.6769,2537.7,2537.2,3.41]
[1724909840711,4.29781202,2537.3,2537.2,3.41]
[1724909841211,3.9416,2537.3,2537.2,3.41]
[1724909841414,9.67253302,2537.3,2537.2,3.41]
[1724909841610,9.67253302,2537.3,2537.2,3.80403]
[1724909842305,5.02703302,2537.3,2537.2,3.80403]
[1724909842499,4.31173302,2537.3,2537.2,10.95343]
[1724909843101,0.6769,2537.7,2537.2,10.5594]
[1724909843308,1.07085,2537.7,2537.4,3.41]
[1724909843511,4.17380544,2537.6,2537.4,3.41]
[1724909843909,4.17380544,2537.6,2537.4,3.804]
[1724909844415,4.17380544,2537.6,2537.4,3.80399]
[1724909844614,4.17380544,2537.6,2537.4,3.41]
[1724909844802,4.17380544,2537.6,2537.4,3.804]
[1724909845008,4.17380544,2537.6,2537.4,3.41]
[1724909845314,4.17380544,2537.6,2537.4,3.80399]
[1724909845709,4.17380544,2537.6,2537.5,0.39399]
[1724909845909,4.17380544,2537.6,2537.4,3.41]
[1724909846707,4.17380544,2537.6,2537.4,3.804]
[1724909847013,4.56777544,2537.6,2537.4,3.41]
[1724909848123,0.39399,2537.5,2537.4,3.41]
[1724909848510,4.21174541,2537.5,2537.4,3.41]
[1724909848811,4.39739023,2537.6,2537.4,3.41]
[1724909849207,4.79136023,2537.6,2537.4,3.41]
[1724909850516,4.39739023,2537.6,2537.4,3.41]
[1724909850817,4.4858309,2537.8,2537.6,0.39396]
[1724909851224,1.4594,2537.9,2537.6,0.39396]
[1724909851414,4.4858309,2537.8,2537.6,0.39396]
[1724909851814,4.8797709,2537.8,2537.5,0.39398]
[1724909852617,4.8797709,2537.8,2537.4,3.80399]
[1724909852818,4.4858309,2537.8,2537.5,0.39397]
[1724909853011,4.8797809,2537.8,2537.5,0.39397]
[1724909854822,4.8797709,2537.8,2537.5,0.39398]
[1724909855620,4.4858309,2537.8,2537.6,0.39397]
[1724909856020,4.4858309,2537.8,2537.6,0.39396]
[1724909856218,4.8797709,2537.8,2537.5,0.39398]
[1724909856919,4.8797809,2537.8,2537.5,0.39398]
[1724909857324,4.8797809,2537.8,2537.4,3.41]
[1724909857325,0.39396,2537.7,2537.4,3.80399]
[1724909857519,0.39396,2537.7,2537.5,0.39398]
[1724909857715,4.2141321,2537.6,2537.5,0.39398]
[1724909857915,8.1549321,2537.6,2537.4,3.41]
[1724909858117,0.6993,2537.5,2537.4,3.41]
[1724909858316,4.6081121,2537.6,2537.4,3.41]
[1724909858515,4.2299033,2537.5,2537.4,3.804]
[1724909858816,4.28102091,2537.6,2537.4,3.804]
[1724909859125,4.28102091,2537.6,2537.4,3.41]
[1724909859126,0.39398,2537.6,2537.4,3.41]
[1724909859525,0.39398,2537.6,2537.4,3.804]
[1724909859526,4.67500091,2537.6,2537.4,3.804]
[1724909859820,0.6993,2537.8,2537.6,0.39396]
[1724909860221,4.01878852,2537.7,2537.6,0.39396]
[1724909860516,4.01878852,2537.7,2537.5,1.07018]
[1724909861024,4.41274852,2537.7,2537.4,3.80399]
[1724909861426,0.39397,2537.6,2537.4,3.80399]
[1724909861626,4.01878852,2537.7,2537.4,3.41]
[1724909861815,4.24102089,2537.5,2537.4,3.804]
[1724909862126,4.77717852,2537.7,2537.4,3.804]
[1724909862313,0.39396,2537.7,2537.4,3.804]
[1724909862720,4.38321852,2537.6,2537.4,3.804]
[1724909863225,4.38321852,2537.6,2537.5,0.39399]
[1724909863721,4.12980324,2537.7,2537.4,3.80399]
[1724909863922,0.39396,2537.7,2537.4,3.80399]
[1724909864124,0.39397,2537.6,2537.4,3.41]
[1724909864620,4.55362311,2537.5,2537.4,3.41]
[1724909864824,4.55362311,2537.5,2537.4,3.804]
[1724909865120,4.07998827,2537.6,2537.4,3.804]
[1724909865517,4.47395827,2537.6,2537.4,3.41]
[1724909866025,4.07998827,2537.6,2537.4,3.804]
[1724909866233,4.47395827,2537.6,2537.4,3.41]
[1724909866420,4.07998827,2537.6,2537.4,3.80399]
[1724909866627,0.39401,2537.4,2537.1,0.39405]
[1724909866813,0.7121,2537.3,2537.2,3.80403]
[1724909867018,4.29558424,2537.3,2537.2,3.41]
[1724909867220,4.29558424,2537.4,2537.3,0.39402]
[1724909867522,4.29558424,2537.6,2537.4,0.39399]
[1724909868025,0.7249,2537.7,2537.4,0.39399]
[1724909868226,4.21132245,2537.6,2537.4,0.39399]
[1724909868422,4.21132245,2537.6,2537.5,0.39399]
[1724909868624,4.21132245,2537.6,2537.4,1.09729]
[1724909869023,4.45224199,2537.7,2537.4,0.7033]
[1724909869226,1.78735,2537.8,2537.4,0.7033]
[1724909869429,1.3934,2537.8,2537.4,1.0973]
[1724909869728,4.45224199,2537.7,2537.4,1.0973]
[1724909870329,4.45224199,2537.7,2537.6,3.41]
[1724909872619,4.45224199,2537.7,2537.4,4.5073]
[1724909873415,4.45224199,2537.7,2537.5,0.39398]
[1724909873623,4.45224199,2537.7,2537.6,3.80397]
[1724909873919,4.11726425,2537.8,2537.7,0.39395]
[1724909874324,3.2078,2537.9,2537.7,0.39395]
[1724909874627,3.2078,2537.9,2537.6,3.41]
[1724909874628,4.11726425,2537.8,2537.6,3.41]
[1724909875128,0.39395,2537.7,2537.6,3.41]
[1724909875425,6.72203405,2537.7,2537.6,3.41]
[1724909875627,10.66283405,2537.7,2537.6,3.41]
[1724909876422,10.26888405,2537.7,2537.6,3.41]
[1724909877028,10.66283405,2537.7,2537.6,3.41]
[1724909879433,6.72203405,2537.7,2537.6,3.41]
[1724909879634,10.66283405,2537.7,2537.6,3.41]
[1724909879825,10.26888405,2537.7,2537.6,3.41]
[1724909880329,5.62448405,2537.7,2537.6,3.80397]
[1724909880523,4.90108405,2537.7,2537.6,3.80397]
[1724909880922,4.90108405,2537.7,2537.6,3.41]
[1724909881323,4.90108405,2537.7,2537.6,3.80397]
[1724909881831,4.90108405,2537.7,2537.6,3.41]
[1724909882137,4.90108405,2537.7,2537.6,3.80397]
[1724909882837,4.16368405,2537.7,2537.6,3.80397]
[1724909883131,4.27442695,2537.8,2537.6,3.41]
[1724909883332,4.27442695,2537.8,2537.6,3.80396]
[1724909884637,0.39395,2537.7,2537.6,3.41]
[1724909884933,4.67632748,2537.7,2537.6,3.41]
[1724909885141,4.28237748,2537.7,2537.4,4.82402121]
[1724909885341,0.6971,2537.6,2537.4,3.80399]
[1724909885535,1.4353,2537.6,2537.5,0.39399]
[1724909886039,5.71767748,2537.6,2537.5,0.39399]
[1724909887427,5.71767748,2537.6,2537.4,4.82402121]
[1724909887832,0.394,2537.4,2537.3,4.22783121]
[1724909888035,0.6918,2537.5,2537.3,3.2078]
[1724909888237,4.4342322,2537.4,2537.3,3.2078]
[1724909888435,4.8282322,2537.4,2537.3,3.2078]
[1724909888636,4.8282322,2537.4,2537.2,1.42]
[1724909889041,4.4342322,2537.4,2537.2,1.81403]
[1724909889235,4.8282322,2537.4,2537.2,1.81403]
[1724909889537,4.4342322,2537.4,2537.2,1.81403]
[1724909889739,4.8282322,2537.4,2537.2,2.83406121]
[1724909889942,4.8282322,2537.4,2537.2,1.81403]
[1724909890147,4.4342322,2537.4,2537.1,1.41406121]
[1724909890441,4.4342322,2537.4,2537.2,4.43003121]
[1724909890442,0.39402,2537.3,2537.2,4.43003121]
[1724909890832,4.57158361,2537.3,2537.2,3.80403]
[1724909891234,4.53579902,2537.4,2537.3,0.39402]
[1724909891434,1.08579,2537.5,2537.3,0.39402]
[1724909891630,1.08579,2537.5,2537.2,3.80402]
[1724909891835,4.92979902,2537.4,2537.2,3.80402]
[1724909892038,4.92979902,2537.4,2537.2,3.41]
[1724909892235,0.39402,2537.3,2537.2,3.41]
[1724909892650,4.53581135,2537.3,2537.2,3.41]
[1724909892851,4.14179135,2537.3,2537.2,3.80403]
[1724909893241,4.91779289,2537.4,2537.2,3.80403]
[1724909893441,0.394,2537.4,2537.2,3.41]
[1724909893751,4.52379289,2537.3,2537.2,3.41]
[1724909893961,4.91781289,2537.3,2537.2,3.41]
[1724909894142,4.52379289,2537.3,2537.2,3.41]
[1724909894343,0.39402,2537.3,2537.2,3.41]
[1724909894749,4.86405016,2537.3,2537.2,3.41]
[1724909894953,4.47003016,2537.3,2537.2,3.41]
[1724909895248,4.44720824,2537.4,2537.2,3.80403]
[1724909895450,4.84121824,2537.4,2537.2,4.1247]
[1724909895651,0.39401,2537.4,2537.2,3.41]
[1724909895853,4.44720824,2537.3,2537.2,3.41]
[1724909896268,4.84122824,2537.3,2537.2,3.41]
[1724909896645,0.39402,2537.3,2537.0,2.11498121]
[1724909896954,0.6871,2537.2,2537.0,5.13093121]
[1724909897158,0.6871,2537.2,2537.0,4.43003121]
[1724909897343,4.49655732,2537.1,2537.0,3.41]
[1724909897542,4.49655732,2537.1,2537.0,3.80406]
[1724909898939,4.49655732,2537.1,2537.0,3.41]
[1724909899144,4.49655732,2537.1,2537.0,3.80406]
[1724909899646,4.49655732,2537.1,2537.0,7.74566]
[1724909899855,3.2078,2537.9,2537.5,0.39399]
[1724909900150,3.2078,2537.9,2537.6,0.7317]
[1724909900151,0.39395,2537.7,2537.6,0.7317]
[1724909900454,4.28810165,2537.7,2537.6,0.7317]
[1724909900642,8.22890165,2537.7,2537.6,0.7317]
[1724909900844,3.9408,2537.7,2537.6,0.7317]
[1724909901249,4.26018762,2537.7,2537.6,0.7317]
[1724909901550,4.26018762,2537.7,2537.6,1.12567]
[1724909901947,4.26018762,2537.8,2537.6,1.12567]
[1724909902144,5.67963,2537.9,2537.6,1.12567]
[1724909902551,4.34143814,2537.8,2537.6,1.12567]
[1724909903850,4.73537814,2537.8,2537.6,0.7317]
[1724909905156,4.73537814,2537.8,2537.4,3.41]
[1724909905157,0.39396,2537.7,2537.4,0.394]
[1724909905344,0.39396,2537.7,2537.3,0.6776]
[1724909905545,4.23930515,2537.6,2537.5,0.39398]
[1724909906946,4.23930515,2537.6,2537.3,0.6776]
[1724909907145,4.23930515,2537.6,2537.5,0.39399]
[1724909908751,4.63327515,2537.6,2537.4,0.394]
[1724909909254,0.39396,2537.7,2537.4,0.394]
[1724909909455,4.33942164,2537.5,2537.4,0.394]
[1724909909656,4.33942164,2537.6,2537.5,0.39399]
[1724909909857,0.39396,2537.7,2537.5,0.39399]
[1724909910048,0.39397,2537.6,2537.4,0.39399]
[1724909910245,0.6879,2537.5,2537.1,1.41866983]
[1724909910447,0.39402,2537.3,2537.1,0.39404]
[1724909910948,4.23164177,2537.2,2537.1,8.56806983]
[1724909911149,0.6879,2537.5,2537.3,0.394]
[1724909911347,4.4697418,2537.4,2537.3,3.804]
[1724909911550,0.6879,2537.5,2537.3,3.804]
[1724909911750,1.08189,2537.5,2537.3,3.41]
[1724909912053,4.95914506,2537.4,2537.3,1.42]
[1724909913551,0.39403,2537.3,2537.0,1.02462983]
[1724909913747,1.81203,2537.3,2537.1,0.39404]
[1724909913951,4.31315728,2537.2,2537.1,0.39404]
[1724909914449,4.31315728,2537.2,2537.0,1.81405]
[1724909914964,4.31315728,2537.2,2537.1,0.39405]
[1724909915862,4.31315728,2537.2,2537.0,1.81406]
[1724909916161,4.31315728,2537.2,2537.1,0.39405]
[1724909916361,4.31315728,2537.2,2537.0,1.81406]
[1724909917058,4.31315728,2537.2,2537.1,0.39405]
[1724909917664,8.25475728,2537.2,2536.9,1.02462983]
[1724909917862,4.31315728,2537.2,2536.9,1.42]
[1724909918063,4.31315728,2537.2,2537.0,0.39406]
[1724909918359,4.31315728,2537.2,2537.1,1.42]
[1724909919055,4.31315728,2537.2,2537.1,1.81405]
[1724909919261,8.25475728,2537.2,2536.8,4.23242983]
[1724909919459,0.6695,2537.1,2537.0,1.81406]
[1724909919661,4.31315728,2537.2,2537.0,1.81406]
[1724909919850,1.418,2537.3,2537.1,0.39405]
[1724909920055,4.22988021,2537.2,2537.1,0.39405]
[1724909920551,4.22988021,2537.2,2537.0,1.81405]
[1724909921368,0.6721,2537.1,2537.0,1.81405]
[1724909921757,4.14736168,2537.1,2537.0,1.81405]
[1724909922159,5.20938488,2537.2,2537.0,1.81405]
[1724909922360,5.20938488,2537.2,2537.1,0.39405]
[1724909922361,0.6983,2537.2,2537.1,0.39405]
[1724909922562,1.76939,2537.5,2537.1,1.42]
[1724909922867,4.12689167,2537.4,2537.2,0.39403]
[1724909923066,4.12689167,2537.4,2537.3,0.39402]
[1724909923265,4.12689167,2537.4,2537.2,0.39402]
[1724909923661,8.06769167,2537.4,2537.2,0.39402]
[1724909924270,8.46169167,2537.4,2537.2,0.39402]
[1724909924661,8.46169167,2537.4,2537.1,1.81404]
[1724909924864,4.52089167,2537.4,2537.2,0.39403]
[1724909925266,8.46169167,2537.4,2537.2,0.39403]
[1724909925468,4.12689167,2537.4,2537.3,0.39402]
[1724909925968,4.12689167,2537.4,2537.2,0.39402]
[1724909926172,4.52089167,2537.4,2537.2,0.39402]
[1724909926388,4.12689167,2537.4,2537.2,0.39402]
[1724909927083,4.52090167,2537.4,2537.2,0.39402]
[1724909927289,4.12689167,2537.4,2537.3,0.39402]
[1724909927478,4.12689167,2537.4,2537.2,0.39402]
[1724909927784,4.12689167,2537.4,2537.3,0.39402]
[1724909928490,4.12689167,2537.4,2537.2,0.39402]
[1724909930691,4.12689167,2537.4,2537.1,1.42]
[1724909930692,0.39403,2537.3,2537.1,1.42]
[1724909930885,4.12689167,2537.4,2537.1,1.42]
[1724909931087,4.78609739,2537.2,2537.1,1.42]
[1724909931281,0.39403,2537.2,2537.1,1.42]
[1724909931684,4.78609739,2537.2,2537.1,1.42]
[1724909931880,4.39206739,2537.2,2537.0,1.42]
[1724909932085,1.13335,2537.1,2537.0,1.42]
[1724909932289,0.7393,2537.1,2537.0,1.81406]
[1724909932595,5.01934214,2537.1,2537.0,1.81406]
[1724909934982,5.41339214,2537.1,2537.0,1.42]
[1724909938992,9.35500214,2537.1,2536.9,1.42]
[1724909939188,9.35500214,2537.1,2536.9,1.81408]
[1724909939189,5.41340214,2537.1,2536.9,1.81408]
[1724909939989,0.39406,2537.0,2536.9,1.42]
[1724909940189,5.41340214,2537.1,2536.9,1.42]
[1724909940389,5.41340214,2537.1,2536.6,1.73312983]
[1724909940390,9.62654207,2537.0,2536.6,1.02462983]
[1724909940577,9.62654207,2537.0,2536.5,0.00591588]
[1724909940578,0.39412,2536.6,2536.5,0.00591588]
[1724909940994,8.59726207,2536.6,2536.5,0.00591588]
[1724909942088,9.27076207,2536.6,2536.5,0.00591588]
[1724909942283,9.27076207,2536.6,2536.3,1.42]
[1724909942284,0.39416,2536.4,2536.3,1.42]
[1724909942481,1.73945,2536.5,2536.3,1.81417]
[1724909942786,4.56396274,2536.4,2536.3,1.81417]
[1724909942985,3.2078,2536.7,2536.6,0.39412]
[1724909943187,2.47082,2537.3,2537.0,0.39405]
[1724909943385,6.0184,2537.3,2536.9,1.81998588]
[1724909943586,0.39405,2537.1,2536.9,1.81998588]
[1724909943787,4.86651313,2537.2,2537.0,0.39406]
[1724909943990,4.47247313,2537.0,2536.9,1.81998588]
[1724909944291,0.39406,2537.0,2536.9,1.42591588]
[1724909944797,4.7577944,2537.0,2536.9,1.42591588]
[1724909945487,4.3637344,2537.0,2536.9,1.42591588]
[1724909945693,4.3637344,2537.0,2536.9,1.81999588]
[1724909945889,0.39405,2537.1,2536.9,1.81999588]
[1724909946094,4.67755316,2537.1,2536.9,1.81999588]
[1724909946291,0.39405,2537.1,2536.9,1.81999588]
[1724909946694,4.52909263,2537.0,2536.9,1.81999588]
[1724909947889,2.0768,2537.3,2537.1,0.39404]
[1724909947890,4.50444651,2537.2,2537.1,0.39404]
[1724909948193,1.4018,2537.3,2537.1,1.81404]
[1724909948389,0.66019229,2537.4,2537.2,0.7088]
[1724909948390,0.00587653,2537.4,2537.2,0.7088]
[1724909948696,0.00587653,2537.4,2537.3,1.81402]
[1724909948881,0.39987653,2537.4,2537.2,1.4387]
[1724909949090,4.40479849,2537.3,2537.1,1.81404]
[1724909949283,1.3922,2537.3,2537.2,0.39403]
[1724909949592,0.00587653,2537.4,2537.3,0.39402]
[1724909950092,4.32793351,2537.4,2537.2,0.39402]
[1724909950390,4.32793351,2537.4,2537.3,1.81402]
[1724909964700,4.32793351,2537.4,2537.3,0.39402]
[1724909964894,4.32793351,2537.4,2537.2,0.39402]
[1724909965099,4.32793351,2537.4,2537.3,0.39402]
[1724909968397,4.32793351,2537.4,2537.3,1.81402]
[1724909969303,4.32793351,2537.4,2537.3,5.75482]
[1724909970395,4.32793351,2537.4,2537.3,1.81402]
[1724909971302,4.72193351,2537.4,2537.1,0.39404]